Cogmind - Beta 16 @@@ ROGUE MODE // 2025.10.25 @ 01:35:07 Player: The Gourd Result: Destroyed by G-34 Mercenary with Small Laser Performance ------------- Evolutions (0) 0 Regions Visited (2) 400 Robots Destroyed (35) 175 Value Destroyed (657) 657 Prototype IDs (0) 0 Alien Tech Used (0) 0 Bonus (7) 7 TOTAL SCORE: 1239 Bonus ------- Follower Combat Kills 7 Cogmind --------- Core Integrity 0/250 Matter 260/300 Energy 250/250 System Corruption 2% Temperature Cool (43) Movement Treading (160) Location -10/Mines Parts ------- > --- POWER (1) -------- Ion Engine > --- PROPULSION (2) --- Improved Treads Improved Treads > --- UTILITY (2) ------ Large Storage Unit Seismic Detector > --- WEAPON (2) ------- High-powered Shotgun Heavy Battle Rifle > --- INVENTORY (15) --- Light Treads Improved Treads Improved Treads Advanced Treads High-capacity Matter Pod (158) Structural Scanner Signal Interpreter System Shield Autogun Autogun Autogun Autogun Missile Launcher Datajack Mace Peak State ------------ > --- POWER ------------ Light Ion Engine > --- PROPULSION ------- Improved Treads Improved Treads > --- UTILITY ---------- Large Storage Unit Seismic Detector > --- WEAPON ----------- High-powered Shotgun Heavy Battle Rifle > --- INVENTORY -------- Light Treads Improved Treads Improved Treads Advanced Treads High-capacity Matter Pod Structural Scanner Signal Interpreter System Shield Autogun Autogun Autogun Autogun Missile Launcher Datajack Mace [Rating: 16] Favorites ----------- Power Ion Engine Engine Ion Engine Propulsion Improved Treads Treads Improved Treads Utility Seismic Detector Device Seismic Detector Storage Large Storage Unit Weapon Autogun Ballistic Gun Autogun Special Weapon Mining Laser Impact Weapon Mace Build | -11 -10 -10 ------- Run | Yrd Mat Min Slots Evolved . | . . . Power . | . . . Propulsion . | . . . Utility . | . . . Weapon . | . . . Parts Attached 21 | 8 8 5 Power 3 | 1 1 1 Engine 3 | 1 1 1 Core . | . . . Reactor . | . . . Propulsion 4 | 2 2 . Treads 4 | 2 2 . Leg . | . . . Wheel . | . . . Hover . | . . . Flight . | . . . Utility 5 | 2 1 2 Device 3 | 1 . 2 Storage 2 | 1 1 . Processor . | . . . Hackware . | . . . Protection . | . . . Artifact . | . . . Weapon 9 | 3 4 2 Energy Gun . | . . . Energy Cannon . | . . . Ballistic Gun 7 | 3 2 2 Ballistic Cannon . | . . . Launcher . | . . . Special Weapon 1 | . 1 . Impact Weapon 1 | . 1 . Slashing Weapon . | . . . Piercing Weapon . | . . . Special Melee Weapon . | . . . Unidentified Prototypes . | . . . Parts Lost 2 | . 1 1 Power 1 | . 1 . Propulsion . | . . . Utility 1 | . . 1 Weapon . | . . . Highest Loss Streak 1 | . 1 1 To Critical Strikes . | . . . Average Backups 12 | 4 13 14 Power . | . 1 . Propulsion 3 | 1 2 3 Utility 4 | . 4 4 Weapon 3 | 1 3 5 Tool/Special . | . . . Unused Backups 19 | . 3 16 Power . | . . . Propulsion 6 | . 2 4 Utility 7 | . . 7 Weapon 5 | . 1 4 Tool/Special 1 | . . 1 Average Slot Usage (%) 95 | . 93 99 Engine 10 | . 7 14 Treads 27 | . 27 28 Device 13 | . 14 13 Storage 14 | . 14 14 Ballistic Gun 26 | . 25 28 Peak Build Rating 16 | 7 12 16 Average Rating 11 | 5 9 15 On Entrance 6 | . 7 12 Avg Prop Armor Cover (%) . | . . . Naked Turns . | . . . Heaviest Build 33 | 14 32 33 Greatest Support 46 | 40 46 46 Greatest Overweight (x) 3 | 3 . . Average Overweight (x) . | . . . Largest Inventory Capacity 15 | 8 15 15 Average Capacity 13 | 7 14 15 Most Carried 15 | 6 15 15 Average Carried 12 | 4 13 14 Final Capacity 15 | 8 15 15 Final Carried 15 | 6 14 15 Class Distribution -------------------- 100% | Mutant Dominant Class ---------------- Mutant | -10/Materials Mutant | -10/Mines Resources | -11 -10 -10 ----------- Run | Yrd Mat Min Matter Collected 1237 | 392 457 388 Remotely . | . . . Salvage Created 980 | 260 527 193 Parts 80 | 24 42 14 Haulers Intercepted 1 | . 1 . Recyclers Shooed 2 | 1 1 . Parts Field Recycled . | . . . Retrieved Matter . | . . . Parts Self-Destructed . | . . . Prevented . | . . . Parts Restored . | . . . Kills | -11 -10 -10 ------- Run | Yrd Mat Min Combat Hostiles Destroyed 19 | . 13 6 Guns 19 | . 13 6 Classes Destroyed 7 | 3 4 . Worker 1 | 1 . . Tunneler 10 | 9 . 1 Hauler 1 | . 1 . Recycler 2 | 1 1 . Operator 2 | . 2 . Swarmer 7 | . 5 2 Grunt 12 | . 8 4 Best Kill Streak 5 | 4 5 2 Combat Bots Only 4 | . 4 2 Max Kills in Single Turn 2 | 1 2 2 Gunslinging 1 | . 1 1 Exploded . | . . . Melee . | . . . Uniques/NPCs Destroyed . | . . . Combat | -11 -10 -10 -------- Run | Yrd Mat Min Hostile Shots Fired 120 | . 76 44 Missed 28 | . 17 11 Hits 92 | . 59 33 Projectile 92 | . 59 33 Critical Strikes 2 | . . 2 Damage Taken 1114 | . 703 411 Core 256 | . 150 106 Absorbed by Shields . | . . . Regen/Repaired (Parts) 76 | . 76 . Core Remaining (%) 100 | 100 . . Volleys Fired 127 | 28 78 21 Largest 2 | 2 2 2 Hottest 100 | 40 100 58 Shots Fired 236 | 56 139 41 Gun 231 | 56 134 41 Cannon . | . . . Launcher . | . . . Special 5 | . 5 . Kinetic 231 | 56 134 41 Thermal 5 | . 5 . Explosive . | . . . Electromagnetic . | . . . Robot Hit Streak 9 | 7 9 7 Robot Miss Streak 5 | 5 5 3 Penetration Max . | . . . Secondary Targets 3 | . 2 1 Max Gunslinging Chain 1 | . 1 1 Shots Hit Robots 138 | 33 78 27 Core Hits 63 | 15 36 12 Critical Kills . | . . . Critical Parts Destroyed . | . . . Critical Strikes . | . . . Melee Attacks 1 | . 1 . Impact 1 | . 1 . Slashing . | . . . Piercing . | . . . Sneak Attacks . | . . . Combat Hostiles . | . . . Follow-up Attacks . | . . . Damage Inflicted 1864 | 355 901 608 Guns 1864 | 355 901 608 Cannons . | . . . Explosions . | . . . Melee . | . . . Ramming . | . . . Kinetic 1864 | 355 901 608 Thermal . | . . . Explosive . | . . . Electromagnetic . | . . . Impact . | . . . Slashing . | . . . Piercing . | . . . Highest Corruption 2 | . 2 2 Average Corruption 2 | . 2 2 Corruption Purged . | . . . Corruption Blocked . | . . . Effects 31 | . 12 19 Message Errors 7 | . 1 6 Matter Fused 5 | . 2 3 Heat Flow Errors 8 | . 6 2 Energy Discharges 3 | . . 3 Data Loss (minor) 2 | . 1 1 Data Loss (major) 2 | . . 2 Misfires 2 | . 2 . Alerts 1 | . . 1 Weapon Failures 1 | . . 1 Overload Shots . | . . . Overflow Damage . | . . . Projectiles . | . . . Explosions . | . . . Melee . | . . . Knockbacks . | . . . Impact . | . . . Kinetic . | . . . Secondary . | . . . Self-Inflicted Damage . | . . . Shots . | . . . Rammed . | . . . Targets Rammed . | . . . Kicked . | . . . Crushed . | . . . Highest Temperature 275 | . 192 275 Average Temperature 51 | . 34 75 Received Heat Transfer 516 | . 258 258 Effects 1 | . . 1 Energy Bleed 1 | . . 1 Siege Activations . | . . . Martial Activations . | . . . Shielding Activations . | . . . Robots Disrupted . | . . . Combat Hostiles . | . . . Robots Corrupted . | . . . Combat Hostiles . | . . . Parts Fried . | . . . Impact Corruptions . | . . . Robots Melted . | . . . Combat Hostiles . | . . . Parts Melted . | . . . Heat Transferred . | . . . Parts Sabotaged . | . . . Parts Stolen . | . . . Parts Stripped . | . . . Power Chain Reactions . | . . . Alert | -11 -10 -10 ------- Run | Yrd Mat Min Maximum Alert Level . | . . . Low Security (%) 100 | 100 100 100 Level 1 . | . . . Level 2 . | . . . Level 3 . | . . . Level 4 . | . . . Level 5 . | . . . High Security . | . . . Max Security . | . . . Peak Influence 80 | 10 80 73 Initial 21 | . . 21 Average 15 | 1 20 12 Influence Increases 709 | 55 441 213 Destroy 0b10 Robot/C 400 | . 260 140 Destroy 0b10 Robot/NC 80 | 55 20 5 Destroy Leader 92 | . 62 30 Allied During Kill 5 | . . 5 Successful Hack 20 | . 20 . Select Force Hacks 60 | . 60 . Disable Machine 15 | . 15 . Destroy Structure 7 | . 4 3 Lose Combat Pursuer 30 | . . 30 Influence Decreases 679 | 55 387 237 Entered New Map 33 | . . 33 Time Decay 606 | 55 377 174 Lost Part 20 | . 10 10 Lost Ally 20 | . . 20 Squads Dispatched 5 | . 4 1 Investigation 4 | . 3 1 Extermination . | . . . Reinforcement 1 | . 1 . Assault . | . . . Garrison . | . . . Intercept . | . . . Searches Triggered . | . . . Construction Impeded . | . . . Haulers Reinforced . | . . . Active Scanning Responses . | . . . Cargo Convoy Interrupts . | . . . Stealth | -11 -10 -10 --------- Run | Yrd Mat Min Distress Signals 1 | . 1 . Communications Jammed . | . . . Distress Signals . | . . . Times Spotted 31 | . 21 10 Peak Tracking Total 4 | . 4 3 Tactical Retreats 1 | . . 1 Traps | -11 -10 -10 ------- Run | Yrd Mat Min Traps Triggered 3 | . 3 . Indirectly . | . . . Trap Hack Attempts . | . . . Triggered . | . . . Disarmed . | . . . Reprogrammed . | . . . Reused . | . . . Traps Extracted . | . . . Installed . | . . . Triggered . | . . . Machines | -11 -10 -10 ---------- Run | Yrd Mat Min Machines Disabled 1 | . 1 . Max in Single Turn 1 | . 1 . Machines Repaired . | . . . Machines Dismantled . | . . . Machines Sabotaged . | . . . Overloaded Fab Kills . | . . . Hacking | -11 -10 -10 --------- Run | Yrd Mat Min Machines Accessed 11 | . 10 1 Terminals 7 | . 7 . Fabricators . | . . . Repair Stations 1 | . 1 . Recycling Units 2 | . 2 . Scanalyzers . | . . . Garrison Access . | . . . Total Hacks 28 | . 27 1 Successful 15 | . 14 1 Failed 13 | . 13 . Catastrophic 2 | . 2 . Database Lockouts . | . . . Manual 24 | . 24 . Terminals 22 | . 22 . Fabricators . | . . . Repair Stations 3 | . 3 . Recycling Units 2 | . 2 . Scanalyzers . | . . . Garrison Access . | . . . Terminal Hacks 3 | . 2 1 Open Door 1 | . . 1 Terminal Index 1 | . 1 . Hauler Manifests 1 | . 1 . Fabricator Hacks . | . . . Repair Station Hacks 2 | . 2 . Scan Component 1 | . 1 . Repair 1 | . 1 . Recycling Unit Hacks . | . . . Scanalyzer . | . . . Garrison Access Hacks . | . . . Unauthorized Hacks 10 | . 10 . Terminals 8 | . 8 . Track 1 | . 1 . Botnet 2 | . 2 . Skim 5 | . 5 . Fabricators . | . . . Repair Stations . | . . . Recycling Units 2 | . 2 . Tunnel 2 | . 2 . Scanalyzers . | . . . Garrison Access . | . . . Data Cores Recovered 1 | . 1 . Used 1 | . 1 . Hacking Detections 7 | . 7 . Full Trace Events . | . . . Feedback Events . | . . . Feedback Blocked . | . . . Robot Schematics Acquired . | . . . Robots Built . | . . . Authchips . | . . . Time . | . . . Total Robot Build Rating . | . . . Part Schematics Acquired . | . . . Parts Built . | . . . Authchips . | . . . Time . | . . . Total Part Build Rating . | . . . Part Studies Acquired . | . . . Parts Repaired 1 | . 1 . Time 26 | . 26 . Parts Recycled . | . . . Recycled Matter . | . . . Retrieved Matter . | . . . Retrieved Components . | . . . Parts Scanalyzed . | . . . Part Schematics Acquired . | . . . Parts Damaged . | . . . Bothacking | -11 -10 -10 ------------ Run | Yrd Mat Min Used RIF Installer . | . . . Robots Hacked . | . . . Non-combat . | . . . Combat . | . . . Robot Hacks Applied . | . . . Relay Couplers Released . | . . . Fabnet Peak Effective % . | . . . Robots Rewired . | . . . Allies Hacked . | . . . Hacks Repelled . | . . . Allies | -11 -10 -10 -------- Run | Yrd Mat Min Total Allies 3 | . . 3 Largest Group 3 | . . 3 Highest-Rated Group 75 | . . 75 Highest-Rated Ally 31 | . . 31 Total Orders . | . . . Ally Attacks 3 | . . 3 Total Damage 21 | . . 21 Kills 1 | . . 1 Allies Corrupted . | . . . Allies Melted . | . . . Intel | -11 -10 -10 ------- Run | Yrd Mat Min Active Infowar (turns) 2867 | 103 1726 1038 Seismic 2867 | 103 1726 1038 Robot Analysis Total . | . . . Derelict Logs Recovered 1 | . . 1 Drone Launches . | . . . Drone Recoveries . | . . . Exploration | -11 -10 -10 ------------- Run | Yrd Mat Min Turns Passed 3154 | 354 1726 1074 Spaces Moved 1404 | 157 660 587 Core 24 | 24 . . Treads 1380 | 133 660 587 Legs . | . . . Wheels . | . . . Hover . | . . . Flight . | . . . Fastest Speed 50 | 50 160 160 Average Speed 159 | 152 160 160 Slowest Speed 200 | 200 160 160 Overloaded Moves . | . . . Propulsion Burnouts . | . . . Robots Hopped . | . . . Potential Cave-ins . | . . . Cave-ins Triggered . | . . . Exploration Rate (%) 62 | 8 96 83 Regions Visited 2 Branch Regions 1 Pre-discovered Areas 3 | . 3 . Known Exits Taken . | . . . Unknown Exits Taken 2 | 1 1 . Scrap Searched 1 | . . 1 Spaces Dug 3 | . 3 . Terrain Destroyed 7 | . 4 3 Melee 1 | . 1 . Projectile 6 | . 3 3 AOE . | . . . Terrain Rammed . | . . . Walls Destroyed . | . . . Machines Disabled . | . . . Actions | -11 -10 -10 --------- Run | Yrd Mat Min Total 2102 | 217 1203 682 Wait 497 | 20 422 55 Move 1402 | 156 659 587 Hop . | . . . Pick Up 26 | 5 15 6 Fast Attach 11 | 7 3 1 Attach 1 | . 1 . Detach 1 | . 1 . Swap 18 | 1 12 5 Drop 18 | . 11 7 Fire 127 | 28 78 21 Melee 1 | . 1 . Ram . | . . . Kick . | . . . Crush . | . . . Escape Stasis . | . . . Rewire . | . . . Trap . | . . . Miscellaneous . | . . . Route ------- -11/Scrapyard -10/Materials (discovered 6 exits: *Mat x3 / *Min x2 / Sub) -10/Mines (discovered 3 exits: *Mat x2 / [*Exi]) History --------- Turn | Location | Event 24 | -11/Scrapyard | Discovered new exit (range 16) 355 | -11/Scrapyard | Entered Materials 356 | -10/Materials | Build established: Mutant 573 | -10/Materials | Discovered new exit (range 5) 888 | -10/Materials | Repaired Lgt. Treads 922 | -10/Materials | Discovered new exit (range 10) 1089 | -10/Materials | Discovered new exit (range 16) 1281 | -10/Materials | Discovered new exit (range 4) 1335 | -10/Materials | Core integrity fell below 50% 1609 | -10/Materials | Discovered new exit (range 16) 1636 | -10/Materials | Learned location of 1 exit from Recycling 1701 | -10/Materials | Identified exit to Subcaves 1757 | -10/Materials | Learned location of 1 exit from Storage 1805 | -10/Materials | Learned Storage security intel 1842 | -10/Materials | Learned Storage garrison access intel 1869 | -10/Materials | Learned 2 Storage zone layouts 1887 | -10/Materials | Learned location of Mines (-10) 1917 | -10/Materials | Learned Storage terminal intel 2004 | -10/Materials | Learned 4 Subcaves zone layouts 2081 | -10/Materials | Entered Mines 2082 | -10/Mines | Identified exit to Materials 2126 | -10/Mines | Received a Mining Laser from a helpful Derelict 2198 | -10/Mines | A weapon hastily lodged in a ceiling crevice suddenly fell to the ground 2207 | -10/Mines | Learned Materials stockpile data 2400 | -10/Mines | Met a Derelict shopkeep closing up shop 2730 | -10/Mines | Core integrity fell below 20% 2833 | -10/Mines | Deemed a non-threat by the Exiles lab entrance 2835 | -10/Mines | Discovered new exit (range 5) 3155 | -10/Mines | Destroyed by G-34 Mercenary with Small Laser Last Messages --------------- 02739_ U-05 Engineer builds a Wall. 02758_ System corrupted: Matter fused (-5). 02769_ Dropped Lgt. Ion Engine. 02798_ Acquired 18 matter. 02833_ "No threat detected, you may enter." 02835_ EXIT=FOUND 02858_ |:OH QD2T:JNCZHL #Q1>5 02907_ System corrupted: Energy discharge (-82). 02952_ T-07 Excavator destroyed. 02957_ Acquired 21 matter. 02970_ Dropped Seismic Detector. 02975_ System corrupted: Energy discharge (-80). 03021_ K-01 Serf collects debris. 03042_ DIG>F2%IURV3JDSW7>N#DYGAMAL 03081_ System corrupted: Energy discharge (-82). 03113_ System corrupted: Matter fused (-6). 03130_ System corrupted: Substantial component data lost. 03144_ System corrupted: Hpw. Shotgun jammed. 03153_ G-47 Trooper destroyed. Map ----- +----------------------------------------------------+ | | | | | | | | | | | | | | | | | | | | | | | | | | | | | ????????????????????????????????????????????? | | ????????????????????????????????????????????? | | ????????????????????????????????????????????? | | ???????????????????????####???????????###???? | | ?????????#######?????## #??????????## #??? | | ????????? ????# #??????????# ### | | ?????????? """ ??## #??????????# | | ?????????? """ ### #???????????# | | ?????????" """ #????????????# | | ????? ##????????????# | | ?????? """ """ ##%g ##????????????## ## | | ?????????? """ ?#@ ###???????????###?? | | ???????????""" ??# ##??????????????? | | ??????????? ???# #??????????????? | | ?????????" """ ????# #??????????????? | | ?????????" """ ????## #??????????????? | | ?????????"?"""??????#### ##????????###???? | | ???????????? ??????????# ##???????## ##??? | | ???????????"??????????## #????????# ##?? | | ????????????????????### u#????????# #?? | | ???????????????????## #???###### #?? | | ??????????????????## ##?## ## #??? | | ??????????????????# ### ##?? | | ??????????????????# ##? | | ??????????????????## #? | | ???????????????????# ### #? | | ???????????????????# ##?## ##? | | ??????????????????# ##???# ## ###?? | | ????????????????? ##????# ### ##???? | | ??????????????? ##?????# #?####????? | | ?????????????? ######## #?????????? | | ?????????????? #???####??? | | ?????????????? ####### #??## ##?? | | ??????????????? ?????### #### #?? | | ???????????????? #?????# ##? | | ?????????????????? #??????# ## | +----------------------------------------------------+ Best States ------------- Heat Dissipation 25 Energy Generation 10 Energy Capacity 250 Matter Stores 300 Matter Capacity 300 Sight Range 16 Terrain Scan Density 10 Evasion (%) 40 Recoil Reduction 2 Item Schematics ----------------- None Robot Schematics ------------------ None Fabricated ------------ Nothing Repaired ---------- Lgt. Treads | 45% | -10/Materials Studied --------- None Alien Tech Used ----------------- None Achievements -------------- DATA ERROR: Steam Global Achievement% Ghost 'Em Organ Harvest Challenges ------------ None Game ------ Seed ResetMultinovaMegatreads Manual? 0 Play Time 00:26:40 Cumulative 137.7 hours Start 2025.10.25 @ 01:06:54 End 2025.10.25 @ 01:35:07 Sessions 2 Manual Loads 0 Difficulty Rogue Special Mode None Game No. 97 Rogue 97 Adventurer 0 Explorer 0 Win Type - Total 2 Types 2/0/0/0/0/0/0/0/0/0 Lore% 43 Gallery% 48 Achievement% 28 Wizard Run 0 Options --------- Layout 1 ASCII 0 Keyboard 1 Movement Vi Keybinds 1 Fullscreen 1 Font 32/SmallcapsGlow Map View 50x35 Zoom Use 0% Tactical HUD 1 Map Filters NONE Filters NONE Steam 1 RUN: 70d4223c-305a-46d0-92e8-a844ef5e45a3